bitfinex/quotes_ETHUSD_20240614
["timestamp","ask_amount","ask_price","bid_price","bid_amount"]
[1718382784031,10.0553,3413.4,3411.8,1.43344514]
[1718382784234,10.0553,3413.4,3411.0,4.267]
[1718382784235,5.52397514,3413.3,3411.0,4.267]
[1718382784445,5.52397514,3413.3,3410.3,1.49143487]
[1718382784446,3.085,3413.1,3411.1,1.43344514]
[1718382784668,7.3688,3413.2,3411.1,1.43344514]
[1718382784669,3.085,3412.9,3411.1,1.43344514]
[1718382784876,3.085,3412.7,3411.1,1.43344514]
[1718382785076,3.0,3412.6,3411.1,1.43344514]
[1718382785232,3.085,3412.2,3410.4,4.267]
[1718382785428,3.085,3412.2,3408.9,4.412]
[1718382785429,4.51844514,3412.2,3410.5,1.43344514]
[1718382785627,3.0,3412.1,3410.5,1.43344514]
[1718382786169,6.8318,3412.3,3410.8,1.43344514]
[1718382786470,10.382,3413.0,3411.0,5.70044514]
[1718382786642,6.8374,3413.6,3411.5,1.43344514]
[1718382786828,6.8374,3413.6,3411.6,0.05860825]
[1718382787178,6.8374,3413.6,3411.7,1.43344514]
[1718382787657,6.8374,3413.6,3411.8,0.55]
[1718382787973,4.51844514,3413.5,3411.2,3.0]
[1718382788272,3.085,3413.3,3411.2,3.0]
[1718382788476,3.085,3413.1,3411.2,1.43344514]
[1718382788681,1.43344514,3413.1,3411.3,1.49206968]
[1718382788849,1.13558451,3413.4,3411.4,0.50973162]
[1718382788850,3.0,3413.3,3411.4,0.50973162]
[1718382789053,4.22058451,3413.4,3411.5,1.4920592]
[1718382789354,3.0,3413.5,3411.5,1.4920592]
[1718382789554,6.8374,3413.6,3412.1,1.43344514]
[1718382789883,6.8374,3413.6,3412.2,0.60859786]
[1718382790105,6.8374,3413.6,3412.3,1.43344514]
[1718382790384,6.8374,3413.6,3412.4,0.60859725]
[1718382790583,6.8374,3413.6,3412.5,1.69264938]
[1718382790795,3.085,3414.3,3412.6,0.05859726]
[1718382790796,9.9125,3414.3,3412.6,0.05859726]
[1718382790951,9.9125,3414.3,3412.7,1.43344514]
[1718382791156,9.9125,3414.3,3411.5,4.267]
[1718382791157,3.085,3414.1,3411.5,4.267]
[1718382791345,3.085,3413.7,3411.1,0.89864654]
[1718382791549,6.8275,3413.8,3411.1,0.60524654]
[1718382791550,3.085,3413.5,3411.1,0.60524654]
[1718382791742,3.085,3413.3,3411.2,1.43344514]
[1718382792143,3.085,3412.9,3411.2,1.43344514]
[1718382792594,3.085,3412.9,3411.3,0.05861974]
[1718382792800,3.085,3412.9,3411.4,1.43344514]
[1718382793107,1.00601,3412.9,3411.4,1.64317628]
[1718382793305,6.9751,3413.0,3411.5,0.05861973]
[1718382793491,6.9751,3413.0,3411.6,1.98344514]
[1718382793701,6.9751,3413.0,3411.7,0.05861097]
[1718382793881,6.9751,3413.0,3411.8,1.49205611]
[1718382794066,6.9751,3413.0,3411.9,0.20420561]
[1718382794410,6.9751,3413.0,3412.0,1.43344514]
[1718382794818,3.085,3412.8,3409.5,7.0961]
[1718382795164,3.085,3412.6,3409.8,0.2934]
[1718382795403,3.085,3412.2,3409.9,0.45604]
[1718382796076,3.085,3412.0,3410.0,0.05863774]
[1718382796246,1.43344514,3411.9,3410.0,0.05863774]
[1718382796537,3.085,3411.8,3409.9,0.45604]
[1718382796764,4.51844514,3411.8,3409.9,0.45604]
[1718382796890,3.83684451,3411.7,3410.0,0.40785118]
[1718382797284,3.0,3411.9,3410.1,0.05864308]
[1718382797527,3.0,3412.0,3410.1,0.05864308]
[1718382797889,3.0,3412.0,3410.0,0.40785118]
[1718382798120,6.085,3412.1,3410.1,1.43344514]
[1718382798314,7.51844514,3412.1,3410.1,1.43344514]
[1718382798536,1.46949451,3412.0,3410.2,0.77973363]
[1718382798827,4.51844514,3411.9,3410.2,1.66317877]
[1718382799145,6.085,3411.8,3410.0,3.0]
[1718382799282,4.51844514,3411.7,3410.1,1.43344514]
[1718382799487,3.0,3411.6,3410.2,0.05864322]
[1718382799687,6.085,3411.8,3410.3,1.43344514]
[1718382799935,4.51844514,3411.7,3409.8,3.0]
[1718382800235,3.75184451,3411.6,3409.9,2.16014514]
[1718382801430,8.27028965,3411.6,3409.9,2.16014514]
[1718382802563,0.55,3411.5,3408.5,3.085]
[1718382802843,0.55,3411.5,3407.1,4.412]
[1718382802844,10.0671,3411.2,3408.0,0.2934]
[1718382803007,3.085,3411.0,3408.1,0.45604]
[1718382803210,3.085,3410.8,3408.1,0.45604]
[1718382803418,7.5321,3410.9,3408.1,0.45604]
[1718382803419,3.085,3410.6,3408.1,0.45604]
[1718382803618,3.085,3410.4,3408.1,0.45604]
[1718382803791,3.0,3410.5,3408.1,0.45604]
[1718382803996,3.0,3410.5,3408.7,4.267]
[1718382804303,3.0,3410.8,3408.8,3.0586575]
[1718382804923,6.085,3410.8,3408.8,3.0586575]
[1718382805089,6.085,3410.8,3408.9,0.55]
[1718382805288,6.085,3410.8,3409.0,0.05865749]
[1718382805531,0.58741054,3410.7,3409.0,0.05865749]
[1718382805706,3.67241054,3410.7,3408.8,3.0]
[1718382805907,3.085,3410.5,3408.3,0.2934]
[1718382806109,6.085,3410.4,3408.3,0.2934]
[1718382806418,0.6635,3410.3,3408.4,1.1752084]
[1718382806614,3.6635,3410.3,3408.4,1.1752084]
[1718382806832,3.6635,3410.3,3408.5,0.05866522]
[1718382807006,3.67241054,3410.7,3408.7,4.267]
[1718382807352,6.9821,3410.9,3408.8,3.05865741]
[1718382807645,6.9821,3410.9,3408.9,0.55]
[1718382807807,6.9821,3410.9,3409.0,0.05865008]
[1718382808125,6.9567,3411.6,3409.4,4.267]
[1718382808287,6.9567,3411.6,3409.5,3.60864299]
[1718382808494,6.9567,3411.6,3409.6,0.7875643]
[1718382808733,7.0352,3412.5,3410.0,4.267]
[1718382808941,3.085,3412.4,3410.1,3.0]
[1718382809235,3.085,3412.4,3410.1,3.55]
[1718382809445,3.085,3412.4,3410.2,0.05863598]
[1718382809732,1.01202,3412.3,3410.3,1.3375636]
[1718382809935,3.085,3412.2,3410.4,0.05863371]
[1718382810137,3.085,3412.2,3410.3,1.3375636]
[1718382810831,3.0,3412.1,3410.3,1.3375636]
[1718382811170,6.085,3412.1,3410.1,3.0]
[1718382812355,6.085,3412.1,3409.2,7.4314]
[1718382812356,3.085,3411.7,3409.2,7.4314]
[1718382812550,3.085,3411.5,3408.8,4.267]
[1718382812744,10.5515,3411.3,3408.6,6.9542]
[1718382812944,3.085,3411.1,3408.5,0.2934]
[1718382813182,3.085,3410.9,3408.5,0.2934]
[1718382813465,3.085,3410.7,3408.5,0.2934]
[1718382813678,3.085,3410.5,3408.5,0.2934]
[1718382813982,6.085,3410.4,3408.5,0.2934]
[1718382814284,3.085,3410.4,3408.5,0.2934]
[1718382814427,3.085,3410.2,3408.5,0.2934]
[1718382814781,8.51454514,3410.1,3407.7,1.1735]
[1718382814994,8.51454514,3410.1,3407.8,1.43344514]
[1718382814995,5.51454514,3410.1,3407.8,1.43344514]
[1718382815269,3.085,3409.9,3407.8,1.43344514]
[1718382815474,3.085,3409.7,3407.8,1.43344514]
[1718382815770,3.085,3409.5,3407.8,1.43344514]
[1718382815959,4.51844514,3409.5,3407.8,1.43344514]
[1718382816271,6.085,3409.4,3407.8,1.43344514]
[1718382816945,3.0,3409.4,3407.9,0.05868143]
[1718382817148,3.66744382,3409.6,3408.0,1.43344514]
[1718382817464,3.0,3409.6,3408.1,0.05867728]
[1718382817666,3.0,3409.6,3408.1,1.49212242]
[1718382818330,3.085,3409.7,3408.1,1.49212242]
[1718382818536,3.0,3409.6,3408.1,1.49212242]
[1718382818742,1.05184451,3409.5,3408.1,1.49212242]
[1718382822410,4.13684451,3409.5,3407.7,3.0]
[1718382822598,4.13684451,3409.5,3407.8,1.43344514]
[1718382822775,5.57028965,3409.5,3407.8,1.43344514]
[1718382823078,3.94202896,3409.4,3407.8,1.43344514]
[1718382825040,3.0,3409.6,3407.8,1.43344514]
[1718382825239,3.085,3409.9,3407.7,3.0]
[1718382825240,6.876,3410.3,3408.2,0.2934]
[1718382825475,1.43344514,3410.2,3408.3,1.43344514]
[1718382826063,0.58627843,3410.7,3408.7,1.43344514]
[1718382826263,3.085,3410.8,3408.8,0.60865708]
[1718382826462,0.3085,3410.7,3408.9,2.36245536]
[1718382826672,0.3085,3410.7,3408.9,5.36245536]
[1718382827089,4.51844514,3410.6,3408.9,5.36245536]
[1718382827241,4.51844514,3410.6,3408.9,2.36245536]
[1718382827439,0.3085,3410.7,3408.9,2.36245536]
[1718382827653,0.33935,3410.6,3409.0,0.53624554]
[1718382827883,4.85779514,3410.6,3409.0,4.43344514]
[1718382828055,4.85779514,3410.6,3409.0,1.43344514]
[1718382828255,0.33935,3410.6,3409.1,1.43344514]
[1718382828500,7.62377843,3411.1,3409.1,1.43344514]
[1718382828644,5.53773363,3411.0,3409.1,1.43344514]
[1718382828840,4.51844514,3411.0,3409.1,1.43344514]
[1718382829085,3.085,3410.8,3409.1,1.43344514]
[1718382829284,3.0,3410.9,3408.7,3.0]
[1718382829285,3.085,3410.6,3408.7,3.0]
[1718382829455,3.085,3410.4,3408.6,3.0]
[1718382829645,3.085,3410.2,3408.6,4.43344514]
[1718382829871,4.51844514,3410.2,3408.6,4.43344514]
[1718382830259,3.085,3410.6,3408.7,1.43344514]
[1718382830545,3.085,3410.4,3408.8,1.17989451]
[1718382830789,4.51844514,3410.4,3408.8,5.61333965]
[1718382830991,4.51844514,3410.4,3408.8,2.61333965]
[1718382832048,4.51844514,3410.4,3408.8,1.43344514]
[1718382833243,3.085,3410.2,3408.5,0.2936]
[1718382833490,3.085,3409.8,3407.9,7.3271]
[1718382833735,3.085,3409.8,3407.2,7.3271]
[1718382833736,3.085,3409.6,3407.2,7.3271]
[1718382833973,3.085,3409.4,3407.3,1.43344514]
[1718382834187,8.35919578,3409.3,3407.4,0.87605451]
[1718382834385,5.35919578,3409.3,3407.5,1.72704514]
[1718382834550,3.0,3409.2,3407.5,1.72704514]
[1718382835766,3.0,3409.2,3407.6,0.05868366]
[1718382835972,3.085,3409.7,3407.7,1.98344514]
[1718382836146,6.45212784,3409.6,3407.8,0.5922505]
[1718382836375,6.45212784,3409.6,3407.9,1.43344514]
[1718382836545,6.45212784,3409.6,3408.0,0.05867417]
[1718382836887,3.36712784,3409.6,3408.1,1.43344514]
[1718382837197,3.0,3409.5,3408.2,0.20788265]
[1718382837352,3.0,3409.5,3408.3,1.49211707]
[1718382837546,3.45212784,3409.6,3407.8,3.53357288]
[1718382837751,3.085,3409.4,3407.9,1.43344514]
[1718382838088,3.03942666,3409.3,3407.5,3.2936]
[1718382838398,3.58627843,3409.2,3407.6,1.43344514]
[1718382838551,2.45314823,3409.1,3407.6,1.43344514]
[1718382838754,3.03942666,3409.1,3407.6,1.43344514]
[1718382838959,1.14405976,3409.0,3407.6,1.43344514]
[1718382839155,1.60588472,3409.0,3407.6,1.43344514]
[1718382839409,3.0,3409.0,3407.6,1.43344514]
[1718382839609,3.0,3409.3,3407.7,0.05868027]
[1718382839759,0.58627843,3409.5,3407.8,1.98344514]
[1718382839961,0.58627843,3409.5,3407.9,0.05867545]
[1718382840160,1.60589278,3409.5,3408.0,1.6376572]
[1718382840488,0.58627843,3409.8,3408.3,1.43344514]
[1718382840697,0.58627843,3410.2,3408.4,0.55]
[1718382840993,2.01972357,3410.1,3408.3,3.0]
[1718382841196,0.58627843,3409.9,3408.3,3.0]
[1718382841421,0.58627843,3409.9,3408.0,0.20421206]
[1718382841422,0.58627843,3409.7,3408.4,1.46286131]
[1718382841622,0.58627843,3409.7,3408.4,1.43344514]
[1718382841833,1.6057661,3409.7,3408.0,3.20421206]
[1718382842132,1.6057661,3409.7,3407.6,7.1898]
[1718382842133,0.58627843,3409.3,3408.1,1.43344514]
[1718382842306,0.58627843,3409.2,3407.7,3.0]
[1718382842513,0.58627843,3409.2,3407.8,1.43344514]
[1718382842827,7.0989,3409.4,3407.8,1.43344514]
[1718382842828,0.58627843,3409.4,3407.8,1.43344514]
[1718382842997,0.58627843,3409.4,3407.9,0.55]
[1718382843194,0.58627843,3409.3,3408.0,1.63178965]
[1718382843395,0.58627843,3409.4,3408.0,1.63178965]
[1718382843799,3.0,3409.6,3408.0,1.63178965]
[1718382844124,1.01952573,3409.5,3408.0,1.63178965]
[1718382844327,0.58627843,3409.0,3407.6,0.2936]
[1718382844501,0.58627843,3409.0,3407.7,1.43344514]
[1718382844884,0.58627843,3408.6,3407.4,0.87605451]
[1718382845087,0.58627843,3408.6,3407.5,1.43344514]
[1718382845088,1.60580416,3408.6,3407.5,1.43344514]
[1718382845285,1.46573317,3408.5,3407.5,1.43344514]
[1718382845519,0.58627843,3408.5,3407.5,1.6643951]
[1718382845696,1.60580416,3408.4,3407.5,1.6643951]
[1718382846047,1.01952573,3408.3,3407.5,1.6643951]
[1718382846199,0.58627843,3408.5,3407.5,1.6643951]
[1718382846415,0.58627843,3408.5,3407.5,1.43344514]
[1718382848634,3.67127843,3408.5,3406.8,3.0]
[1718382848867,3.89342045,3408.4,3406.9,1.43344514]
[1718382849159,0.58627843,3408.2,3406.9,1.43344514]
[1718382849345,1.6061728,3408.2,3406.9,1.43344514]
[1718382850159,1.01989437,3408.1,3406.9,1.43344514]
[1718382850524,0.58627843,3408.2,3406.9,1.43344514]
[1718382851268,0.58627843,3408.5,3407.0,1.4528813]
[1718382851433,0.58627843,3408.7,3407.1,0.55]
[1718382851636,3.03886168,3408.7,3407.2,1.65316828]
[1718382851833,1.43277005,3408.7,3407.3,0.60868377]
[1718382852017,0.58627843,3408.8,3407.4,1.43344514]
[1718382852223,1.01979263,3408.8,3407.5,0.05868032]
[1718382852416,1.01979263,3408.8,3407.6,1.63765769]
[1718382852718,1.01979263,3408.8,3407.7,0.05867687]
[1718382852925,0.58627843,3409.2,3407.8,1.49212655]
[1718382853172,1.6059129,3409.1,3407.8,1.49212655]
[1718382853331,2.45345547,3409.0,3407.9,0.16963391]
[1718382853657,1.01970714,3408.9,3407.9,0.22831359]
[1718382853824,0.58627843,3409.1,3407.9,0.22831359]
[1718382854223,1.60596964,3409.0,3407.9,0.22831359]
[1718382854432,1.01969121,3408.9,3407.9,0.22831359]
[1718382854627,0.58627843,3409.1,3407.9,0.22831359]
[1718382854926,1.60595386,3409.0,3407.9,0.22831359]
[1718382855130,2.45434563,3408.9,3408.0,0.16617587]
[1718382855331,0.58627843,3409.0,3408.1,0.05867802]
[1718382855532,4.17696772,3409.3,3408.1,1.49212316]
[1718382855533,0.58627843,3409.3,3408.1,1.49212316]
[1718382855763,0.58627843,3409.3,3408.1,1.43344514]
[1718382856132,0.58627843,3408.7,3407.6,0.20421255]
[1718382856410,0.58627843,3408.5,3406.8,7.3149]
[1718382856562,0.58627843,3408.1,3406.9,1.43344514]
[1718382856745,1.6058368,3408.0,3406.9,1.43344514]
[1718382856944,0.58627843,3408.3,3407.0,0.05869346]
[1718382857288,0.88272579,3408.4,3407.1,1.43344514]
[1718382857289,0.58627843,3408.4,3407.1,1.43344514]
[1718382857506,1.60603166,3408.3,3407.2,0.20790404]
[1718382857702,0.58627843,3408.1,3407.2,1.43344514]
[1718382857848,0.58627843,3408.1,3406.8,7.3149]
[1718382857849,0.58627843,3408.0,3406.8,7.3149]
[1718382858053,0.58627843,3407.2,3406.1,1.174043]
[1718382858244,1.01975323,3407.1,3405.5,6.8998]
[1718382858461,0.83515418,3407.0,3405.5,7.58978]
[1718382858758,0.58627843,3406.6,3405.5,7.58978]
[1718382858960,0.58627843,3406.9,3405.9,4.254]
[1718382859169,0.58627843,3407.1,3405.9,4.254]
[1718382859783,2.47708427,3407.1,3406.0,0.05861741]
[1718382859990,1.0201404,3407.0,3406.0,0.48987915]
[1718382860163,0.58627843,3407.2,3406.0,0.48987915]
[1718382860488,1.60644487,3407.2,3406.1,0.55]
[1718382860719,1.60644487,3407.1,3405.5,7.58978]
[1718382860847,2.47710916,3407.0,3405.6,0.55]
[1718382861047,2.47710916,3407.0,3405.7,4.254]
[1718382861048,1.02016644,3406.9,3405.7,4.254]
[1718382861313,0.58627843,3407.1,3405.8,5.089378]
[1718382861451,0.58627843,3407.1,3405.9,0.02761751]
[1718382861652,2.19719851,3407.4,3406.0,1.43344514]
[1718382861653,2.04279582,3407.3,3406.0,1.43344514]
[1718382862589,2.79879073,3407.6,3406.0,1.43344514]
[1718382862590,0.58627843,3407.5,3406.0,1.43344514]
[1718382862751,0.58627843,3407.5,3406.1,1.20228231]
[1718382862951,0.58627843,3407.5,3406.2,1.43344514]
[1718382863155,0.58627843,3407.5,3406.2,4.43344514]
[1718382863402,3.35899289,3407.7,3406.2,4.43344514]
[1718382863403,2.04244147,3407.6,3406.3,0.55]
[1718382863552,3.0625404,3407.5,3406.4,1.43344514]
[1718382863934,1.02009893,3407.4,3406.4,1.99701789]
[1718382864137,0.58627843,3407.5,3406.4,1.99701789]
[1718382864138,0.58627843,3407.5,3406.4,1.43344514]
[1718382864630,0.58627843,3407.5,3405.9,3.0]
[1718382864931,4.69139834,3407.4,3406.2,3.376]
[1718382865136,2.4759945,3407.3,3406.2,3.376]
[1718382865338,0.84634439,3407.2,3406.2,3.376]
[1718382865924,1.02020003,3407.1,3406.2,3.376]
[1718382866123,1.02020003,3407.1,3405.1,3.376]
[1718382866124,4.69147846,3407.1,3404.5,0.2936]
[1718382866436,0.58627843,3406.9,3405.6,3.376]
[1718382866648,0.58627843,3406.7,3405.6,3.376]
[1718382867045,1.02020003,3406.6,3405.6,3.376]
[1718382867350,3.67127843,3406.7,3405.6,3.376]
[1718382867517,5.55936917,3406.6,3405.6,3.376]
[1718382867714,2.88347604,3406.5,3405.6,3.376]
[1718382868055,1.86304185,3406.5,3405.6,3.376]
[1718382868341,0.58627843,3406.7,3405.6,3.376]
[1718382868644,3.0,3406.7,3405.7,1.43344514]
[1718382868804,0.58627843,3406.9,3405.7,1.43344514]
[1718382869138,6.06009833,3406.9,3405.7,1.43344514]
[1718382869345,1.28199185,3406.9,3405.7,1.43344514]
[1718382869654,4.02035916,3406.9,3405.7,1.43344514]
[1718382869852,1.43262282,3407.2,3405.7,1.43344514]
[1718382870054,6.90576368,3407.2,3406.1,3.376]
[1718382870265,4.26196772,3407.5,3406.2,1.43344514]
[1718382870266,0.58627843,3407.5,3406.2,1.43344514]
[1718382870411,2.038578,3407.7,3406.6,3.376]
[1718382870607,8.08367843,3408.0,3406.6,3.376]
[1718382870827,7.4974,3408.0,3406.7,1.43344514]
[1718382871106,4.10502774,3407.9,3406.6,3.376]
[1718382871345,4.41984127,3407.8,3406.6,3.376]
[1718382871568,3.05762614,3407.7,3406.6,3.376]
[1718382871737,1.02002774,3407.6,3406.6,3.376]
[1718382872076,0.58627843,3407.7,3406.6,3.376]
[1718382872373,1.60642871,3407.6,3406.6,3.376]
[1718382872543,1.11800694,3407.6,3406.6,3.376]
[1718382872743,0.58627843,3407.8,3406.7,1.43344514]
[1718382872945,5.03791099,3407.9,3406.7,1.43344514]
[1718382873190,5.03791099,3407.9,3406.6,3.376]
[1718382873191,3.05801762,3407.8,3406.6,3.376]
[1718382873351,3.0,3407.7,3406.6,3.376]
[1718382873755,0.58627843,3407.8,3406.6,3.376]
[1718382873959,1.50514042,3407.7,3406.6,3.376]
[1718382874165,4.50514042,3407.7,3406.6,4.80944514]
[1718382874347,3.0,3407.7,3406.7,0.05863353]
[1718382874542,3.58627843,3407.9,3406.7,0.05863353]
[1718382874772,1.60633984,3407.8,3406.6,3.376]
[1718382874942,0.58627843,3407.6,3405.8,3.0]
[1718382875142,0.58627843,3407.5,3406.1,3.376]
[1718382875374,2.30896428,3407.4,3406.2,1.43344514]
[1718382875670,1.02006141,3407.3,3406.2,1.43344514]
[1718382876440,1.02006141,3407.2,3406.1,3.376]
[1718382876647,1.02028137,3407.1,3406.1,3.376]
[1718382876855,0.58627843,3407.2,3406.1,3.376]
[1718382877183,0.45821546,3407.1,3406.1,3.376]
[1718382877482,1.84840545,3407.1,3406.1,3.376]
[1718382877687,0.45821546,3407.1,3406.1,3.376]
[1718382877989,0.58627843,3407.2,3406.1,3.376]
[1718382878853,1.97665568,3407.2,3406.1,3.376]
[1718382879081,1.46900422,3406.9,3405.5,3.376]
[1718382879304,1.46900422,3406.9,3405.5,4.80944514]
[1718382879305,0.58627843,3406.7,3405.5,4.80944514]
[1718382879502,2.13241217,3406.8,3405.5,4.80944514]
[1718382879503,0.58627843,3406.6,3405.5,4.80944514]
[1718382879710,1.97665568,3406.7,3405.5,4.80944514]
[1718382879908,1.61795553,3406.8,3405.5,4.80944514]
[1718382880174,2.2498381,3406.7,3405.5,4.80944514]
[1718382880412,1.22949813,3406.7,3405.5,4.80944514]
[1718382880613,4.2264417,3406.7,3405.5,4.80944514]
[1718382880914,2.41067631,3406.6,3405.5,4.80944514]
[1718382881092,1.81577656,3406.7,3405.5,4.80944514]
[1718382881297,1.81577656,3406.7,3405.6,1.43344514]
[1718382881505,0.58627843,3406.9,3405.6,1.43344514]
[1718382881694,2.99687544,3406.9,3405.6,1.43344514]
[1718382882021,1.17696772,3407.2,3405.6,1.43344514]
[1718382882022,0.58627843,3407.2,3406.0,3.376]
[1718382882336,0.58627843,3407.2,3406.1,1.43344514]
[1718382883099,0.58627843,3407.2,3406.0,3.7686]
[1718382883289,0.58627843,3407.2,3406.0,4.80944514]
[1718382883496,1.02023753,3407.2,3406.0,4.80944514]
[1718382883982,1.02018606,3407.1,3406.0,4.80944514]
[1718382884258,1.02018606,3407.1,3404.6,4.845]
[1718382884259,6.8044,3404.7,3402.8,6.7531]
[1718382884553,3.09108134,3404.6,3402.8,6.7531]
[1718382884820,0.5902042,3404.2,3402.8,6.7531]
[1718382885036,0.5902042,3404.0,3402.8,6.7531]
[1718382885196,0.5902042,3404.3,3402.8,6.7531]
[1718382885380,4.51844514,3404.2,3402.4,3.376]
[1718382885581,3.085,3404.0,3402.5,0.34962585]
[1718382886399,3.085,3404.0,3402.4,3.376]
[1718382886819,3.085,3404.0,3402.3,0.1202585]
[1718382887032,3.085,3403.8,3402.3,0.1202585]
[1718382887319,4.51844514,3403.8,3402.3,0.1202585]
[1718382887931,6.085,3403.7,3402.3,0.1202585]
[1718382888142,4.75245451,3403.6,3402.3,0.1202585]
[1718382888340,1.75245451,3403.6,3402.3,0.1202585]
[1718382888861,3.61298684,3404.1,3402.3,0.1202585]
[1718382888862,0.61298684,3404.1,3402.4,7.2439]
[1718382889044,11.11834,3404.6,3402.4,7.2439]
[1718382889220,1.43344514,3404.1,3402.4,7.2439]
[1718382889933,3.085,3403.9,3402.3,0.1202585]
[1718382890144,3.085,3403.7,3402.3,0.1202585]
[1718382890348,4.51844514,3403.7,3402.3,0.1202585]
[1718382890521,0.75184451,3403.6,3402.3,0.1202585]
[1718382890862,3.0,3403.8,3402.4,1.43344514]
[1718382891032,3.0,3403.9,3402.5,0.05877287]
[1718382891239,3.0,3403.9,3402.5,1.49221801]
[1718382891430,3.0,3404.5,3402.6,1.43344514]
[1718382891630,1.43344514,3404.4,3402.6,1.43344514]
[1718382891833,4.04017851,3404.3,3402.6,1.43344514]
[1718382892146,3.085,3404.1,3402.3,0.1202585]
[1718382892350,3.085,3403.9,3402.3,0.1202585]
[1718382892550,3.085,3403.8,3402.3,0.1202585]
[1718382892747,1.43344514,3403.7,3402.3,0.1202585]
[1718382892955,3.53684451,3403.6,3402.3,0.1202585]
[1718382893120,10.1384,3403.4,3402.3,0.1202585]
[1718382893323,11.57184514,3403.4,3402.3,0.1202585]
[1718382893537,6.085,3403.3,3402.3,0.1202585]
[1718382893931,0.45184451,3403.6,3402.3,1.55370364]
[1718382894136,3.0,3403.9,3402.3,1.709074]
[1718382894337,3.0,3403.9,3402.4,1.43344514]
[1718382896284,3.0,3403.9,3402.3,0.27562886]
[1718382896285,7.51844514,3403.9,3402.3,0.27562886]
[1718382896432,7.51844514,3403.9,3402.3,1.55370364]
[1718382900686,3.085,3403.5,3402.3,0.1202585]
[1718382900834,8.82744514,3403.6,3402.3,0.1202585]
[1718382900835,4.51844514,3403.3,3402.3,0.1202585]
[1718382901277,0.88274451,3403.5,3402.3,0.1202585]
[1718382901550,0.95517851,3404.3,3402.4,0.02271771]
[1718382901700,2.0610003,3405.0,3402.4,4.266]
[1718382901701,6.9219,3405.0,3402.4,4.266]
[1718382902200,3.085,3404.8,3402.4,4.266]
[1718382902403,3.085,3404.6,3402.5,1.18169585]
[1718382902560,2.57747965,3404.7,3402.5,1.18169585]
[1718382902561,3.085,3404.4,3402.5,1.18169585]
[1718382903110,1.14403451,3404.7,3402.5,1.18169585]
[1718382903111,3.085,3404.2,3402.5,1.18169585]
[1718382903400,4.51844514,3404.2,3402.5,1.18169585]
[1718382903558,7.4509,3403.9,3402.3,7.5509585]
[1718382903759,4.51844514,3403.8,3402.3,0.1202585]
[1718382904187,6.085,3403.7,3402.3,0.1202585]
[1718382905161,3.085,3403.5,3402.3,0.1202585]
[1718382905403,3.085,3403.3,3402.3,0.1202585]
[1718382905603,3.75184451,3403.2,3402.3,0.1202585]
[1718382905803,3.0,3403.7,3402.3,0.1202585]
[1718382906003,1.43344514,3403.7,3402.3,0.1202585]
[1718382906215,0.5902042,3404.6,3403.2,7.2396]
[1718382906366,7.1281,3405.3,3403.2,7.2396]
[1718382906570,3.085,3405.2,3403.3,0.05875647]
[1718382906897,7.1281,3405.3,3403.4,1.15643565]
[1718382906898,1.02131,3405.1,3403.4,1.15643565]
[1718382907104,6.8322,3406.3,3404.3,3.38]
[1718382907468,3.0,3406.1,3404.3,3.38]
[1718382907665,3.085,3406.0,3404.3,3.38]
[1718382908102,0.75,3406.3,3404.1,3.38]
[1718382908103,3.085,3405.6,3404.1,3.38]
[1718382908398,3.085,3405.4,3403.4,1.15643565]
[1718382908603,8.19774514,3405.5,3403.6,3.38]
[1718382908604,3.085,3405.2,3403.6,3.38]
[1718382908903,6.7643,3405.5,3404.5,3.38]
[1718382909158,9.8493,3405.5,3404.5,3.38]
[1718382909352,9.8493,3405.5,3403.8,3.38]
[1718382909353,11.28274514,3405.5,3403.8,3.38]
[1718382909653,4.43344514,3405.4,3403.8,3.38]
[1718382909797,4.20477451,3405.3,3403.8,3.38]
[1718382910147,3.085,3405.1,3403.8,3.38]
[1718382910435,3.085,3405.1,3403.1,7.4477]
[1718382910436,0.5902042,3405.8,3405.0,3.38]
[1718382910639,7.0823,3406.2,3405.0,3.38]
[1718382910842,8.51574514,3406.2,3405.0,3.38]
[1718382911144,0.85157451,3406.1,3405.0,3.38]
[1718382911515,1.43344514,3406.0,3404.2,7.4719]
[1718382911725,1.43344514,3406.0,3404.6,3.38]
[1718382912040,1.43344514,3406.0,3404.2,3.38]
[1718382912041,3.085,3405.9,3404.2,3.38]
[1718382912199,3.085,3405.7,3403.9,3.38]
[1718382912402,3.085,3405.3,3403.9,3.38]
[1718382912602,3.085,3405.1,3403.0,6.7517]
[1718382912860,3.085,3404.9,3403.1,3.38]
[1718382913005,3.085,3404.7,3403.1,3.38]
[1718382913357,3.085,3404.3,3403.1,3.38]
[1718382913501,1.01604,3404.2,3403.1,3.38]
[1718382913702,4.01604,3404.2,3403.1,3.38]
[1718382914152,4.01604,3404.2,3401.8,6.7517]
[1718382914153,4.51844514,3404.1,3401.8,6.7517]
[1718382914333,5.06844514,3404.1,3401.8,10.1317]
[1718382914536,5.06844514,3404.1,3401.8,3.38]
[1718382914537,3.085,3403.7,3401.8,3.38]
[1718382914748,3.085,3403.5,3401.8,3.38]
[1718382915021,5.91610117,3403.6,3401.2,7.0881]
[1718382915022,3.085,3403.3,3401.3,4.267]
[1718382915575,4.48265603,3403.6,3401.3,4.267]
[1718382915576,3.085,3403.5,3401.3,4.267]
[1718382915867,3.085,3403.5,3401.2,7.0881]
[1718382915868,3.0,3403.2,3401.2,7.0881]
[1718382916021,1.43344514,3403.2,3401.2,7.0881]
[1718382916453,3.085,3403.0,3401.2,7.0881]
[1718382916685,3.085,3402.6,3400.5,7.3565]
[1718382916868,6.085,3402.5,3400.5,7.3565]
[1718382917072,0.45184451,3402.9,3400.7,4.267]
[1718382917262,3.0,3403.2,3400.8,0.04529982]
[1718382917458,7.51844514,3403.2,3400.8,0.04529982]
[1718382917664,3.0,3403.2,3401.8,6.9697]
[1718382917862,3.0,3403.8,3402.4,1.47872365]
[1718382918065,0.5902042,3404.1,3402.5,0.05877191]
[1718382918310,0.5902042,3404.1,3402.7,6.8865]